bitfinex/quotes_BTCUSD_20221001
["timestamp","ask_amount","ask_price","bid_price","bid_amount"]
[1664598153130,0.00741539,19403.0,19401.0,1.41383469]
[1664598153364,0.31467637,19403.0,19402.0,0.357571]
[1664598153619,0.31467637,19403.0,19401.0,1.41383469]
[1664598153942,0.00741539,19403.0,19402.0,0.357571]
[1664598154662,0.00741539,19403.0,19402.0,0.032]
[1664598155118,0.00741539,19403.0,19402.0,0.389571]
[1664598155340,0.00741539,19403.0,19402.0,0.032]
[1664598155766,0.00741539,19403.0,19401.0,1.41383469]
[1664598156034,0.00741539,19403.0,19402.0,0.357571]
[1664598156254,0.00741539,19403.0,19401.0,1.41383469]
[1664598156450,0.00741539,19403.0,19402.0,0.357571]
[1664598156665,0.00741539,19403.0,19402.0,0.032]
[1664598156870,0.00741539,19403.0,19402.0,0.389571]
[1664598157006,0.00741539,19403.0,19402.0,0.032]
[1664598157689,0.00741539,19403.0,19401.0,0.90210325]
[1664598158139,0.00741539,19403.0,19402.0,0.357571]
[1664598158568,0.00741539,19403.0,19401.0,0.93610325]
[1664598158783,0.00741539,19403.0,19402.0,0.357571]
[1664598158998,0.00741539,19403.0,19401.0,0.93610325]
[1664598159251,0.00741539,19403.0,19402.0,0.357571]
[1664598159527,0.00741539,19403.0,19401.0,0.93610325]
[1664598159748,0.00741539,19403.0,19402.0,0.357571]
[1664598159970,0.05,19402.0,19401.0,0.90210325]
[1664598160175,0.00741539,19403.0,19401.0,0.90210325]
[1664598160618,0.00741539,19403.0,19401.0,0.93610325]
[1664598161800,0.00741539,19403.0,19402.0,0.357571]
[1664598162008,0.00741539,19403.0,19402.0,0.447571]
[1664598162222,0.00741539,19403.0,19402.0,0.357571]
[1664598162615,0.00741539,19403.0,19402.0,0.389571]
[1664598162804,0.00741539,19403.0,19402.0,0.032]
[1664598163288,0.36498639,19403.0,19402.0,0.032]
[1664598163521,0.00741539,19403.0,19402.0,0.032]
[1664598163733,0.00741539,19403.0,19401.0,0.90210325]
[1664598164616,0.00741539,19403.0,19401.0,0.93610325]
[1664598165097,0.00741539,19403.0,19402.0,0.357571]
[1664598165470,0.00741539,19403.0,19401.0,0.93610325]
[1664598165906,0.00741539,19403.0,19401.0,0.90210325]
[1664598166177,0.00741539,19403.0,19402.0,0.357571]
[1664598166754,0.00741539,19403.0,19401.0,0.93610325]
[1664598167066,0.00741539,19403.0,19402.0,0.357571]
[1664598167255,0.00741539,19403.0,19401.0,0.93610325]
[1664598167475,0.00741539,19403.0,19402.0,0.357571]
[1664598167697,0.00741539,19403.0,19401.0,0.93610325]
[1664598167920,0.00741539,19403.0,19402.0,0.357571]
[1664598168141,0.00741539,19403.0,19401.0,0.90210325]
[1664598168368,0.00741539,19403.0,19402.0,0.357571]
[1664598168596,0.00741539,19403.0,19402.0,0.032]
[1664598168810,0.00741539,19403.0,19402.0,0.122]
[1664598169035,0.00741539,19403.0,19402.0,0.479571]
[1664598169260,0.00741539,19403.0,19402.0,0.17016743]
[1664598169477,0.00741539,19403.0,19402.0,0.032]
[1664598170145,0.00741539,19403.0,19402.0,0.357571]
[1664598170898,0.00741539,19403.0,19402.0,2.11106654]
[1664598171142,0.00741539,19403.0,19402.0,2.71106654]
[1664598171642,0.00741539,19403.0,19402.0,2.74199068]
[1664598171866,0.00741539,19403.0,19402.0,2.70999068]
[1664598172121,0.00741539,19403.0,19402.0,2.18185644]
[1664598172754,0.00741539,19403.0,19402.0,2.2299323]
[1664598173920,0.00741539,19403.0,19402.0,2.1509323]
[1664598174150,0.00732229,19403.0,19402.0,2.1509323]
[1664598174370,0.00732229,19403.0,19402.0,2.4606964]
[1664598174676,0.00732229,19403.0,19402.0,2.1509323]
[1664598174899,0.00732229,19403.0,19402.0,3.1396964]
[1664598175577,0.00732229,19403.0,19402.0,2.2299323]
[1664598175809,0.00732229,19403.0,19402.0,3.1396964]
[1664598176041,0.00732229,19403.0,19402.0,3.0606964]
[1664598176486,0.00732229,19403.0,19402.0,2.1509323]
[1664598176708,0.00732229,19403.0,19402.0,3.1396964]
[1664598177848,0.00732229,19403.0,19402.0,3.0606964]
[1664598178075,0.00732229,19403.0,19402.0,2.7031254]
[1664598178291,0.00732229,19403.0,19402.0,3.0606964]
[1664598178719,0.00732229,19403.0,19402.0,3.1396964]
[1664598179976,0.00732229,19403.0,19402.0,3.0606964]
[1664598180621,0.00732229,19403.0,19402.0,3.1396964]
[1664598181664,0.00732229,19403.0,19402.0,2.8299323]
[1664598181884,0.00732229,19403.0,19402.0,2.7509323]
[1664598182362,0.00732229,19403.0,19402.0,3.0606964]
[1664598182788,0.00732229,19403.0,19402.0,3.1396964]
[1664598183893,0.00732229,19403.0,19402.0,3.0606964]
[1664598184693,0.00732229,19403.0,19402.0,3.1396964]
[1664598185971,0.00732229,19403.0,19402.0,3.0606964]
[1664598186729,0.00732229,19403.0,19402.0,3.1396964]
[1664598186945,0.00732229,19403.0,19402.0,2.4723613]
[1664598187401,0.00732229,19403.0,19402.0,2.8299323]
[1664598187845,0.00732229,19403.0,19402.0,2.7509323]
[1664598188719,0.00732229,19403.0,19402.0,3.1396964]
[1664598188929,0.00732229,19403.0,19402.0,2.8299323]
[1664598189387,0.00732229,19403.0,19402.0,3.1396964]
[1664598189944,0.00732229,19403.0,19402.0,3.0606964]
[1664598190749,0.00732229,19403.0,19402.0,3.1396964]
[1664598192083,0.00732229,19403.0,19402.0,3.0606964]
[1664598192778,0.00732229,19403.0,19402.0,3.1396964]
[1664598193852,0.00732229,19403.0,19402.0,2.7821254]
[1664598194061,0.00732229,19403.0,19402.0,3.0606964]
[1664598194718,0.00732229,19403.0,19402.0,2.8159323]
[1664598194952,0.00732229,19403.0,19402.0,3.1256964]
[1664598196039,0.00732229,19403.0,19402.0,3.0606964]
[1664598196270,0.00732229,19403.0,19402.0,2.7509323]
[1664598196712,0.00732229,19403.0,19402.0,2.8159323]
[1664598197143,0.00721969,19403.0,19402.0,2.8159323]
[1664598197973,0.00721969,19403.0,19402.0,3.0606964]
[1664598198925,0.00721969,19403.0,19402.0,3.1256964]
[1664598199916,0.00721969,19403.0,19402.0,3.0606964]
[1664598200817,0.00721969,19403.0,19402.0,3.1406964]
[1664598201941,0.00721969,19403.0,19402.0,3.0606964]
[1664598202802,0.00721969,19403.0,19402.0,3.1256964]
[1664598204108,0.00721969,19403.0,19402.0,3.09986044]
[1664598204536,0.00721969,19403.0,19402.0,2.79009634]
[1664598204660,0.00721969,19403.0,19402.0,2.85509634]
[1664598205080,0.00721969,19403.0,19402.0,2.8159323]
[1664598205616,0.00721969,19403.0,19402.0,3.1256964]
[1664598205840,0.00721969,19403.0,19402.0,2.8159323]
[1664598206055,0.00721969,19403.0,19402.0,2.7509323]
[1664598206840,0.00721969,19403.0,19402.0,2.8159323]
[1664598207070,0.00721969,19403.0,19402.0,3.1256964]
[1664598207301,0.00721969,19403.0,19402.0,2.8159323]
[1664598207769,0.00721969,19403.0,19402.0,3.1256964]
[1664598208003,0.00721969,19403.0,19402.0,3.0606964]
[1664598208232,0.00721969,19403.0,19402.0,1.8509323]
[1664598208592,0.00721969,19403.0,19402.0,2.1606964]
[1664598208813,0.00721969,19403.0,19402.0,1.9299323]
[1664598209219,0.00721969,19403.0,19402.0,2.8299323]
[1664598210110,0.00721969,19403.0,19402.0,2.7509323]
[1664598210374,0.00721969,19403.0,19402.0,2.1509323]
[1664598210576,0.00721969,19403.0,19402.0,2.7509323]
[1664598210760,0.00721969,19403.0,19402.0,2.8299323]
[1664598210973,0.00721969,19403.0,19402.0,2.44830244]
[1664598212083,0.00721969,19403.0,19402.0,1.76788773]
[1664598212757,0.00721969,19403.0,19402.0,1.81388773]
[1664598214126,0.00721969,19403.0,19402.0,1.76788773]
[1664598214467,0.00721969,19403.0,19402.0,2.05126683]
[1664598214685,0.00721969,19403.0,19402.0,2.11626683]
[1664598215421,0.21205902,19403.0,19402.0,0.93288773]
[1664598215605,0.00721969,19403.0,19402.0,0.57531673]
[1664598216059,0.00721969,19403.0,19402.0,0.51031673]
[1664598216278,0.31698379,19403.0,19402.0,0.51031673]
[1664598216523,0.00721969,19403.0,19402.0,0.51031673]
[1664598216764,0.31698379,19403.0,19402.0,0.89788773]
[1664598216991,0.0655402,19403.0,19402.0,0.54031673]
[1664598217493,0.0655402,19403.0,19402.0,0.89788773]
[1664598217712,0.0655402,19403.0,19402.0,0.54031673]
[1664598217933,0.0655402,19403.0,19402.0,0.51031673]
[1664598218152,0.0655402,19403.0,19402.0,0.86788773]
[1664598218369,0.0655402,19403.0,19402.0,0.51031673]
[1664598218812,0.0655402,19403.0,19402.0,0.54031673]
[1664598219977,0.0655402,19403.0,19402.0,0.51031673]
[1664598220621,0.0655402,19403.0,19401.0,1.41383469]
[1664598220838,0.0655402,19403.0,19402.0,0.03]
[1664598221543,0.3753043,19403.0,19402.0,0.03]
[1664598221760,0.0655402,19403.0,19402.0,0.03]
[1664598221982,0.0655402,19403.0,19401.0,1.41383469]
[1664598222437,0.0655402,19403.0,19401.0,0.90210325]
[1664598222882,0.0655402,19403.0,19401.0,0.94310325]
[1664598224005,0.0655402,19403.0,19401.0,0.90210325]
[1664598225089,0.0655402,19403.0,19401.0,0.94310325]
[1664598226517,0.0655402,19403.0,19401.0,0.90210325]
[1664598226968,0.3753043,19403.0,19401.0,0.94310325]
[1664598227203,0.0655402,19403.0,19401.0,0.94310325]
[1664598227430,0.00721969,19403.0,19401.0,0.94310325]
[1664598228011,0.00721969,19403.0,19401.0,0.90210325]
[1664598228711,0.00721969,19403.0,19401.0,0.94310325]
[1664598228949,0.05,19402.0,19401.0,0.94310325]
[1664598229178,0.00721969,19403.0,19401.0,0.94310325]
[1664598229392,0.31698379,19403.0,19401.0,0.42766925]
[1664598230032,0.31698379,19403.0,19401.0,0.38666925]
[1664598230298,0.388179,19403.0,19401.0,0.38666925]
[1664598230642,0.05,19402.0,19401.0,0.38666925]
[1664598230884,0.0784149,19403.0,19401.0,0.42766925]
[1664598231092,0.388179,19403.0,19401.0,0.42766925]
[1664598232006,0.05,19402.0,19401.0,0.42766925]
[1664598232218,0.0784149,19403.0,19401.0,0.38666925]
[1664598232454,0.05,19402.0,19401.0,0.38666925]
[1664598232837,0.05,19402.0,19401.0,0.427575]
[1664598234231,0.05,19402.0,19401.0,0.386575]
[1664598234965,0.05,19402.0,19401.0,0.439575]
[1664598235839,0.31698379,19403.0,19401.0,0.439575]
[1664598236017,0.31698379,19403.0,19401.0,0.386575]
[1664598236390,0.05,19402.0,19401.0,0.386575]
[1664598236768,0.05,19402.0,19401.0,0.427575]
[1664598237025,0.31698379,19403.0,19401.0,0.427575]
[1664598237209,0.05,19402.0,19401.0,0.427575]
[1664598238072,0.05,19402.0,19401.0,0.386575]
[1664598238913,0.05,19402.0,19401.0,0.439575]
[1664598239635,0.31698379,19403.0,19401.0,0.439575]
[1664598239864,0.388179,19403.0,19401.0,0.439575]
[1664598240086,0.388179,19403.0,19401.0,0.386575]
[1664598240653,0.05,19402.0,19401.0,0.744146]
[1664598240894,0.00721969,19403.0,19401.0,0.428575]
[1664598241116,0.31698379,19403.0,19401.0,0.428575]
[1664598241339,0.05,19402.0,19401.0,0.428575]
[1664598241771,0.00721969,19403.0,19401.0,0.428575]
[1664598242007,0.31698379,19403.0,19401.0,0.428575]
[1664598242250,0.00721969,19403.0,19401.0,0.386575]
[1664598242470,0.05,19402.0,19401.0,0.386575]
[1664598242690,0.00721969,19403.0,19401.0,0.744146]
[1664598242908,0.00721969,19403.0,19401.0,0.428575]
[1664598243341,0.05,19402.0,19401.0,0.428575]
[1664598244093,0.31698379,19403.0,19401.0,0.386575]
[1664598244305,0.05,19402.0,19401.0,0.386575]
[1664598244875,0.388179,19403.0,19401.0,0.410575]
[1664598245535,0.05,19402.0,19401.0,0.410575]
[1664598246249,0.05,19402.0,19401.0,0.386575]
[1664598247041,0.05,19402.0,19401.0,0.410575]
[1664598247484,0.0784149,19403.0,19401.0,0.768146]
[1664598247734,0.388179,19403.0,19402.0,0.357571]
[1664598248003,0.388179,19403.0,19401.0,0.410575]
[1664598248222,0.05,19402.0,19401.0,0.386575]
[1664598248480,0.0784149,19403.0,19401.0,0.386575]
[1664598248716,0.388179,19403.0,19401.0,0.386575]
[1664598248956,0.388179,19403.0,19401.0,0.410575]
[1664598249426,0.0784149,19403.0,19402.0,0.357571]
[1664598249650,0.388179,19403.0,19401.0,0.410575]
[1664598249881,0.0784149,19403.0,19401.0,0.410575]
[1664598250093,0.00721969,19403.0,19401.0,0.410575]
[1664598250341,0.00721969,19403.0,19401.0,0.386575]
[1664598251019,0.31698379,19403.0,19401.0,0.410575]
[1664598251322,0.05,19402.0,19401.0,0.410575]
[1664598252018,0.00721969,19403.0,19401.0,0.410575]
[1664598252252,0.31698379,19403.0,19401.0,0.386575]
[1664598252473,0.388179,19403.0,19401.0,0.386575]
[1664598252699,0.05,19402.0,19401.0,0.386575]
[1664598252903,0.05,19402.0,19401.0,0.410575]
[1664598253370,0.0784149,19403.0,19401.0,0.410575]
[1664598253610,0.05,19402.0,19401.0,0.410575]
[1664598253862,0.0784149,19403.0,19401.0,0.410575]
[1664598254071,0.05,19402.0,19401.0,0.410575]
[1664598254520,0.05,19402.0,19401.0,0.386575]
[1664598254929,0.05,19402.0,19401.0,0.416575]
[1664598255754,0.388179,19403.0,19401.0,0.416575]
[1664598256234,0.388179,19403.0,19401.0,0.386575]
[1664598256519,0.05,19402.0,19401.0,0.386575]
[1664598256939,0.407571,19402.0,19401.0,0.428575]
[1664598257166,0.05,19402.0,19401.0,0.428575]
[1664598257935,0.388179,19403.0,19401.0,0.428575]
[1664598258377,0.388179,19403.0,19401.0,0.386575]
[1664598258616,0.05,19402.0,19401.0,0.386575]
[1664598259118,0.00721969,19403.0,19401.0,0.464575]
[1664598259340,0.05,19402.0,19401.0,0.464575]
[1664598260113,0.31698379,19403.0,19401.0,0.386575]
[1664598260406,0.05,19402.0,19401.0,0.386575]
[1664598260577,0.00721969,19403.0,19401.0,0.386575]
[1664598260792,0.05,19402.0,19401.0,0.386575]
[1664598261008,0.00721969,19403.0,19401.0,0.416575]
[1664598261217,0.31698379,19403.0,19401.0,0.416575]
[1664598261679,0.05,19402.0,19401.0,0.416575]
[1664598262089,0.31698379,19403.0,19401.0,0.416575]
[1664598262251,0.31698379,19403.0,19401.0,0.386575]
[1664598262464,0.05,19402.0,19401.0,0.386575]
[1664598262969,0.05,19402.0,19401.0,0.410575]
[1664598263772,0.31698379,19403.0,19401.0,0.410575]
[1664598263993,0.388179,19403.0,19401.0,0.410575]
[1664598264131,0.388179,19403.0,19401.0,0.386575]
[1664598264748,0.05,19402.0,19401.0,0.386575]
[1664598264968,0.00721969,19403.0,19401.0,0.410575]
[1664598265184,0.31698379,19403.0,19401.0,0.410575]
[1664598265643,0.05,19402.0,19401.0,0.410575]
[1664598266318,0.05,19402.0,19401.0,0.386575]
[1664598267058,0.407571,19402.0,19401.0,0.398575]
[1664598267275,0.05,19402.0,19401.0,0.398575]
[1664598268159,0.05,19402.0,19401.0,0.386575]
[1664598269081,0.05,19402.0,19401.0,0.398575]
[1664598269254,0.407571,19402.0,19401.0,0.398575]
[1664598269435,0.05,19402.0,19401.0,0.398575]
[1664598270524,0.05,19402.0,19401.0,0.386575]
[1664598270753,0.05,19402.0,19401.0,0.744146]
[1664598270969,0.05,19402.0,19401.0,0.386575]
[1664598271217,0.05,19402.0,19401.0,0.398575]
[1664598271927,0.31698379,19403.0,19401.0,0.398575]
[1664598271928,0.00721969,19403.0,19401.0,0.756146]
[1664598272158,0.00721969,19403.0,19402.0,0.357571]
[1664598272414,0.00721969,19403.0,19401.0,0.386575]
[1664598273117,0.00721969,19403.0,19401.0,0.398575]
[1664598274362,0.00721969,19403.0,19402.0,0.357571]
[1664598274588,0.00721969,19403.0,19401.0,0.398575]
[1664598274805,0.00721969,19403.0,19401.0,0.386575]
[1664598275017,0.05,19402.0,19401.0,0.386575]
[1664598275271,0.00721969,19403.0,19401.0,0.386575]
[1664598275474,0.00721969,19403.0,19402.0,0.58653699]
[1664598275705,0.00721969,19403.0,19402.0,0.22896599]
[1664598282554,0.67455479,19403.0,19402.0,0.22896599]
[1664598282763,0.00721969,19403.0,19402.0,0.22896599]
[1664598282986,0.31698379,19403.0,19402.0,0.22896599]
[1664598284335,0.00721969,19403.0,19402.0,0.22896599]
[1664598284555,0.31698379,19403.0,19402.0,0.22896599]
[1664598284782,0.00721969,19403.0,19402.0,0.22896599]
[1664598286768,0.31698379,19403.0,19402.0,0.22896599]
[1664598287007,0.00721969,19403.0,19402.0,0.22896599]
[1664598288686,0.31698379,19403.0,19402.0,0.22896599]
[1664598290101,0.00721969,19403.0,19402.0,0.22896599]
[1664598291089,0.31698379,19403.0,19402.0,0.22896599]
[1664598291262,0.00721969,19403.0,19402.0,0.22896599]
[1664598298297,0.67455479,19403.0,19402.0,0.22896599]
[1664598298479,0.00721969,19403.0,19402.0,0.22896599]
[1664598298691,0.31698379,19403.0,19402.0,0.22896599]
[1664598299056,0.00721969,19403.0,19402.0,0.22896599]
[1664598300406,0.00721969,19403.0,19402.0,0.58653699]
[1664598300525,0.00721969,19403.0,19402.0,0.22896599]
[1664598301541,0.02884604,19403.0,19402.0,0.22896599]
[1664598301780,0.0360593,19403.0,19402.0,0.22896599]
[1664598302586,0.02884666,19403.0,19402.0,0.22896599]
[1664598305512,0.01222066,19403.0,19402.0,0.22896599]
[1664598306076,0.02883961,19403.0,19402.0,0.22896599]
[1664598310742,0.33860371,19403.0,19402.0,0.22896599]
[1664598310940,0.02883961,19403.0,19402.0,0.22896599]
[1664598311121,0.69617471,19403.0,19402.0,0.22896599]
[1664598311335,0.02883961,19403.0,19402.0,0.22896599]
[1664598313459,0.33860371,19403.0,19402.0,0.22896599]
[1664598313686,0.38641061,19403.0,19402.0,0.22896599]
[1664598313914,0.02883961,19403.0,19402.0,0.58653699]
[1664598314092,0.02883961,19403.0,19402.0,0.22896599]
[1664598323087,0.02883961,19403.0,19402.0,0.58653699]
[1664598323345,0.02883961,19403.0,19402.0,0.22896599]
[1664598326891,0.33860371,19403.0,19402.0,0.22896599]
[1664598327033,0.02883961,19403.0,19402.0,0.22896599]
[1664598329049,0.33860371,19403.0,19402.0,0.22896599]
[1664598329490,0.69617471,19403.0,19402.0,0.22896599]
[1664598330308,0.33860371,19403.0,19402.0,0.22888012]
[1664598330535,0.3097641,19403.0,19402.0,0.22888012]
[1664598330757,0.38946095,19403.0,19401.0,0.386564]
[1664598330983,0.407571,19402.0,19400.0,0.51630836]
[1664598331214,0.05,19402.0,19401.0,0.386564]
[1664598331439,0.407571,19402.0,19401.0,0.396564]
[1664598331692,0.5880535,19403.0,19401.0,0.754135]
[1664598331917,0.05,19402.0,19401.0,0.396564]
[1664598332626,0.31864468,19402.0,19401.0,0.128855]
[1664598332855,1.43426261,19402.0,19400.0,0.00084536]
[1664598333120,2.00642089,19401.0,19400.0,0.00084536]
[1664598333349,1.29701824,19401.0,19400.0,0.00084536]
[1664598333586,1.25661665,19401.0,19400.0,0.00084536]
[1664598334501,1.29701824,19401.0,19400.0,0.00084536]
[1664598334730,0.89904565,19401.0,19400.0,0.00084536]
[1664598334956,1.25661665,19401.0,19400.0,0.00084536]
[1664598335957,0.94685255,19401.0,19400.0,0.00084536]
[1664598336172,1.25661665,19401.0,19400.0,0.00084536]
[1664598336631,0.94685255,19401.0,19400.0,0.00084536]
[1664598337050,0.58928155,19401.0,19400.0,0.00084536]
[1664598337298,0.94685255,19401.0,19400.0,0.00084536]
[1664598339491,1.25661665,19401.0,19400.0,0.00084536]
[1664598341037,0.89904565,19401.0,19400.0,0.00084536]
[1664598341267,1.25661665,19401.0,19400.0,0.00084536]
[1664598346885,0.58928155,19401.0,19400.0,0.00084536]
[1664598347117,0.94685255,19401.0,19400.0,0.00084536]
[1664598350900,1.25661665,19401.0,19400.0,0.00084536]
[1664598354713,1.25661665,19401.0,19400.0,0.00073961]
[1664598372397,1.29701824,19401.0,19400.0,0.00073961]
[1664598373303,1.35762063,19401.0,19400.0,0.00073961]
[1664598374719,1.95762063,19401.0,19400.0,0.00073961]
[1664598375076,1.93741859,19401.0,19400.0,0.00073961]
[1664598375658,2.08641007,19401.0,19400.0,0.00073961]
[1664598377077,2.03841889,19401.0,19400.0,0.00073961]
[1664598377292,1.33741859,19401.0,19400.0,0.00073961]
[1664598377541,1.31723268,19401.0,19400.0,0.00073961]
[1664598377753,1.04787959,19401.0,19400.0,0.00062093]
[1664598378017,1.35764369,19401.0,19400.0,0.00062093]
[1664598378232,1.04787959,19401.0,19400.0,0.00062093]
[1664598381069,1.35764369,19401.0,19400.0,0.00062093]
[1664598384890,0.98726356,19401.0,19400.0,0.00062093]
[1664598385114,5.11839992,19401.0,19400.0,0.00062093]
[1664598385349,4.21935427,19401.0,19400.0,0.00062093]
[1664598385582,3.82137226,19401.0,19400.0,0.00062093]
[1664598385801,3.82137226,19401.0,19400.0,0.38721693]
[1664598386289,0.357571,19401.0,19400.0,0.38721693]
[1664598386663,0.04041101,19402.0,19400.0,0.38721693]
[1664598386875,0.70774611,19402.0,19400.0,0.38721493]
[1664598387141,0.357571,19401.0,19400.0,0.38721493]
[1664598387629,0.04041101,19402.0,19400.0,0.38721493]
[1664598387856,0.70774611,19402.0,19400.0,0.38721393]
[1664598388091,0.357571,19401.0,19400.0,0.38721393]
[1664598388304,0.04041101,19402.0,19400.0,0.38721393]
[1664598388528,0.35017511,19402.0,19400.0,0.00062093]
[1664598388757,0.357571,19401.0,19400.0,0.00062093]
[1664598389024,0.04041101,19402.0,19400.0,0.38721393]
[1664598389269,0.70774611,19402.0,19400.0,0.00062093]
[1664598389510,0.357571,19401.0,19400.0,0.38721493]
[1664598389725,0.10102704,19402.0,19400.0,0.38721493]
[1664598389852,0.41068507,19402.0,19400.0,0.12948393]
[1664598390061,0.357571,19401.0,19400.0,0.12948393]
[1664598390331,0.04030494,19402.0,19400.0,0.16831602]
[1664598390582,0.357571,19401.0,19400.0,0.12948393]
[1664598390809,0.357571,19402.0,19400.0,0.12948393]
[1664598391020,0.357571,19401.0,19400.0,0.12948393]
[1664598391288,0.95993553,19403.0,19400.0,0.12948393]
[1664598391444,1.45573926,19403.0,19400.0,0.36967618]
[1664598391655,0.05,19402.0,19400.0,0.36967618]
[1664598392105,0.407571,19402.0,19400.0,0.36967618]
[1664598393239,0.357571,19401.0,19400.0,0.36967618]
[1664598393462,0.05,19402.0,19400.0,0.36967618]
[1664598393694,0.05,19402.0,19400.0,0.4325275]
[1664598394154,0.407571,19402.0,19400.0,0.4325275]
[1664598394320,0.3097641,19402.0,19400.0,0.24081318]
[1664598394563,0.6673351,19401.0,19400.0,0.00062093]
[1664598394923,0.3097641,19402.0,19400.0,0.00062093]
[1664598395137,0.357571,19401.0,19400.0,0.00062093]
[1664598396064,1.72201219,19403.0,19400.0,0.00062093]
[1664598396277,0.05,19402.0,19400.0,0.00062093]
[1664598396593,0.3597641,19402.0,19400.0,0.00062093]
[1664598396812,0.357571,19401.0,19400.0,0.00062093]
[1664598397019,0.05,19402.0,19400.0,0.00062093]
[1664598397363,0.357571,19401.0,19400.0,0.00062093]
[1664598397816,0.3597641,19402.0,19400.0,0.00062093]
[1664598398073,0.357571,19401.0,19400.0,0.00062093]
[1664598398286,0.3597641,19402.0,19400.0,0.00062093]
[1664598398503,0.357571,19401.0,19400.0,0.00062093]
[1664598398959,0.3597641,19402.0,19400.0,0.00062093]
[1664598399227,0.357571,19401.0,19400.0,0.00062093]
[1664598400401,0.04040335,19402.0,19400.0,0.00062093]
[1664598400651,0.3097641,19402.0,19400.0,0.00062093]
[1664598400879,1.14876422,19403.0,19400.0,0.00062093]
[1664598401102,0.7173351,19402.0,19400.0,0.12948393]
[1664598401324,0.357571,19401.0,19400.0,0.12948393]
[1664598401546,0.05,19402.0,19400.0,0.12948393]
[1664598401756,0.7173351,19402.0,19400.0,0.12948393]
[1664598401979,0.407571,19401.0,19400.0,0.12948393]
[1664598402129,0.05,19401.0,19400.0,0.12948393]
[1664598402594,0.38,19401.0,19400.0,0.12948393]
[1664598403465,0.33,19401.0,19400.0,0.12948393]
[1664598403686,0.33,19401.0,19400.0,0.44893336]
[1664598403891,0.33,19401.0,19400.0,0.80650436]
[1664598404073,0.33,19401.0,19400.0,0.44893336]
[1664598404566,0.687571,19401.0,19400.0,0.44893336]
[1664598404747,0.33,19401.0,19400.0,0.44893336]
[1664598404989,0.33,19401.0,19400.0,0.54893336]
[1664598405196,0.33,19401.0,19400.0,1.32196736]
[1664598405408,0.33,19401.0,19400.0,1.42196736]
[1664598405831,0.33,19401.0,19400.0,1.73132303]
[1664598406044,0.33,19401.0,19400.0,1.42196736]
[1664598407573,0.33,19401.0,19400.0,1.9456988]
[1664598408252,0.33,19401.0,19400.0,1.5881278]
[1664598408470,0.33,19401.0,19400.0,1.9456988]
[1664598408940,0.33,19401.0,19400.0,1.9336988]
[1664598409634,0.33,19401.0,19400.0,1.9526988]
[1664598410733,0.33,19401.0,19400.0,1.8526988]
[1664598410961,0.687571,19401.0,19400.0,1.4761278]
[1664598411181,0.33,19401.0,19400.0,1.4761278]
[1664598411397,0.33,19401.0,19400.0,1.8336988]
[1664598411612,0.33,19401.0,19400.0,1.8526988]
[1664598412048,0.33,19401.0,19400.0,1.4951278]
[1664598412262,0.33,19401.0,19400.0,1.79098037]
[1664598412582,0.33,19401.0,19400.0,1.43340937]
[1664598412798,0.33,19401.0,19400.0,1.41440937]
[1664598413260,0.33,19401.0,19400.0,1.77198037]
[1664598413478,0.33,19401.0,19400.0,1.41440937]
[1664598413703,0.687571,19401.0,19400.0,0.39721493]
[1664598414133,0.33,19401.0,19400.0,0.13948393]
[1664598414780,0.33,19401.0,19400.0,0.12940405]
[1664598415743,0.33,19401.0,19400.0,0.13940405]
[1664598416893,0.33,19401.0,19400.0,0.12940405]
[1664598417549,0.33,19401.0,19400.0,0.13940405]
[1664598418928,0.33,19401.0,19400.0,0.12940405]
[1664598419885,0.33,19401.0,19400.0,0.14840405]
[1664598421027,0.33,19401.0,19400.0,0.12940405]
[1664598421709,0.33,19401.0,19400.0,0.20640405]
[1664598423082,0.33,19401.0,19400.0,0.12940405]
[1664598423887,0.33,19401.0,19400.0,0.13940405]
[1664598425026,0.33,19401.0,19400.0,0.12940405]
[1664598425704,0.33,19401.0,19400.0,0.13940405]
[1664598427070,0.33,19401.0,19400.0,0.12940405]
[1664598427812,0.33,19401.0,19400.0,0.13940405]
[1664598428263,0.33,19401.0,19400.0,1.08940405]
[1664598428530,0.33,19401.0,19400.0,2.17016905]
[1664598428965,0.33,19401.0,19400.0,1.80259805]
[1664598429416,0.33,19401.0,19400.0,2.16016905]
[1664598429650,0.33,19401.0,19400.0,2.26016905]
[1664598429918,0.33,19401.0,19400.0,2.22916905]
[1664598430139,0.33,19401.0,19400.0,2.27916905]
[1664598430366,0.33,19401.0,19400.0,2.56374927]
[1664598430587,0.33,19401.0,19400.0,2.51374927]
[1664598431064,0.33,19401.0,19400.0,2.49474927]
[1664598431746,0.33,19401.0,19400.0,2.54474927]
[1664598431972,0.33,19401.0,19400.0,1.56374927]
[1664598432195,0.33,19401.0,19400.0,1.25617827]
[1664598432421,0.33,19401.0,19400.0,1.61374927]
[1664598432640,0.33,19401.0,19400.0,1.25617827]
[1664598432863,0.33,19401.0,19400.0,2.51374927]
[1664598433091,0.33,19401.0,19400.0,2.49474927]
[1664598433881,0.33,19401.0,19400.0,2.51374927]
[1664598434321,0.33,19401.0,19400.0,2.15617827]
[1664598434772,0.33,19401.0,19400.0,1.56374927]
[1664598435001,0.33,19401.0,19400.0,0.92159805]
[1664598435456,0.33,19401.0,19400.0,0.90259805]
[1664598435708,0.33,19401.0,19400.0,1.26016905]
[1664598435921,0.33,19401.0,19400.0,1.33716905]
[1664598437021,0.33,19401.0,19400.0,1.26016905]
[1664598437243,0.33,19401.0,19400.0,0.90259805]
[1664598437686,0.33,19401.0,19400.0,1.26016905]
[1664598437904,0.33,19401.0,19400.0,0.97959805]
[1664598439036,0.33,19401.0,19400.0,0.90259805]
[1664598439391,0.33,19401.0,19400.0,1.26016905]
[1664598439855,0.33,19401.0,19400.0,1.27916905]
[1664598440975,0.33,19401.0,19400.0,0.90259805]
[1664598441214,0.33,19401.0,19400.0,1.26016905]
[1664598441880,0.33,19401.0,19400.0,0.39913505]
[1664598442103,0.33,19401.0,19400.0,0.75670605]
[1664598442678,0.33,19401.0,19400.0,0.39913505]
[1664598443095,0.33,19401.0,19400.0,0.38713505]
[1664598443579,0.33,19401.0,19400.0,0.74470605]
[1664598444026,0.33,19401.0,19400.0,0.39913505]
[1664598445173,0.33,19401.0,19400.0,0.74470605]
[1664598445396,0.33,19401.0,19400.0,0.38713505]
[1664598445847,0.33,19401.0,19400.0,0.39913505]